bitfinex/quotes_SOLUSD_20251106
["timestamp","ask_amount","ask_price","bid_price","bid_amount"]
[1762445374958,7.01356813,156.33,156.3,0.2]
[1762445375352,7.68356813,156.33,156.3,0.2]
[1762445375748,7.68356813,156.32,156.3,0.2]
[1762445375960,0.67,156.36,156.3,0.2]
[1762445376176,7.01356813,156.35,156.3,13.61146849]
[1762445376348,7.01356813,156.35,156.3,6.59790036]
[1762445376674,0.7,156.35,156.3,6.59782635]
[1762445376885,7.01356813,156.34,156.3,6.59782635]
[1762445377171,7.71356813,156.35,156.3,13.61139448]
[1762445377465,7.01356813,156.35,156.3,6.59782635]
[1762445377653,14.89356813,156.37,156.31,7.69356813]
[1762445377850,21.28871766,156.37,156.31,7.69356813]
[1762445378068,14.89356813,156.36,156.3,0.2]
[1762445378261,15.59356813,156.36,156.31,7.01356813]
[1762445378570,8.58,156.36,156.31,7.01356813]
[1762445378776,7.88,156.36,156.32,7.01356813]
[1762445379156,7.88,156.36,156.32,7.69356813]
[1762445379556,7.88,156.36,156.3,22.59266602]
[1762445379557,7.88,156.36,156.34,7.01356813]
[1762445379753,7.88,156.36,156.35,7.01356813]
[1762445379948,7.88,156.36,156.33,27.60556813]
[1762445380655,7.88,156.36,156.33,34.00207931]
[1762445381371,7.88,156.36,156.34,7.01356813]
[1762445381574,7.01356813,156.41,156.35,7.01356813]
[1762445381766,0.7,156.43,156.38,7.01356813]
[1762445381957,0.7,156.43,156.39,7.01356813]
[1762445382160,8.58,156.43,156.39,7.01356813]
[1762445382468,7.88,156.43,156.4,13.40743002]
[1762445382644,14.89356813,156.43,156.38,7.01356813]
[1762445382848,7.71356813,156.42,156.37,6.39498468]
[1762445383048,7.71356813,156.42,156.37,13.40855281]
[1762445383244,7.71356813,156.42,156.36,34.00104204]
[1762445383553,7.01356813,156.39,156.34,7.01356813]
[1762445383758,7.01356813,156.4,156.34,13.40955716]
[1762445383948,7.01356813,156.39,156.34,13.40955716]
[1762445384145,0.7,156.41,156.34,13.40955716]
[1762445384146,14.89356813,156.38,156.34,6.39598903]
[1762445384394,14.89356813,156.38,156.33,7.01356813]
[1762445384679,15.59356813,156.38,156.32,7.01356813]
[1762445385046,15.59356813,156.38,156.31,43.66333945]
[1762445385256,21.98832736,156.38,156.33,7.01356813]
[1762445385573,7.01356813,156.37,156.32,7.01356813]
[1762445385777,7.01356813,156.37,156.3,7.21356813]
[1762445385778,0.7,156.37,156.3,7.21356813]
[1762445386079,14.27475923,156.38,156.3,0.88]
[1762445386080,14.89356813,156.38,156.3,0.88]
[1762445386281,7.01356813,156.34,156.3,0.2]
[1762445386580,7.88,156.33,156.3,0.2]
[1762445386950,15.59356813,156.33,156.3,0.2]
[1762445387946,7.71356813,156.32,156.3,0.2]
[1762445388371,15.59356813,156.32,156.3,0.2]
[1762445388756,7.01356813,156.31,156.3,0.2]
[1762445389066,15.59356813,156.32,156.3,0.2]
[1762445389575,21.99071501,156.32,156.3,0.2]
[1762445389779,8.58,156.32,156.3,0.2]
[1762445390080,15.59356813,156.32,156.3,0.2]
[1762445390458,7.88,156.32,156.3,0.2]
[1762445390761,7.88,156.32,156.3,14.29137564]
[1762445390970,7.88,156.32,156.31,7.69356813]
[1762445391262,7.88,156.35,156.31,7.69356813]
[1762445391467,7.88,156.35,156.32,7.01356813]
[1762445391672,7.88,156.35,156.31,7.69356813]
[1762445391865,7.88,156.35,156.32,7.01356813]
[1762445392180,7.88,156.35,156.33,7.01356813]
[1762445392387,7.88,156.35,156.34,7.01356813]
[1762445392679,7.88,156.35,156.33,7.68356813]
[1762445392858,7.88,156.35,156.34,14.07988385]
[1762445393058,7.88,156.35,156.34,6.39631572]
[1762445393264,7.01356813,156.38,156.34,6.39631572]
[1762445393583,15.58356813,156.38,156.34,6.39631572]
[1762445394083,8.57,156.38,156.31,7.06754334]
[1762445394282,8.57,156.38,156.32,7.01356813]
[1762445394283,7.01356813,156.37,156.32,7.01356813]
[1762445394454,15.58356813,156.38,156.33,7.01356813]
[1762445394778,15.58356813,156.38,156.34,6.39631572]
[1762445395282,8.57,156.38,156.34,6.39631572]
[1762445395465,8.57,156.38,156.34,13.40988385]
[1762445395982,7.01356813,156.4,156.35,7.68356813]
[1762445396159,7.88,156.4,156.36,7.01356813]
[1762445396486,15.58356813,156.4,156.35,7.68356813]
[1762445396772,8.57,156.4,156.36,13.40906569]
[1762445397153,55.10853004,156.5,156.37,7.01356813]
[1762445397482,8.57,156.51,156.41,7.01356813]
[1762445397483,7.70356813,156.46,156.41,7.01356813]
[1762445397789,0.69,156.46,156.42,7.01356813]
[1762445397997,7.01356813,156.48,156.43,7.01356813]
[1762445398179,7.01356813,156.46,156.39,20.592]
[1762445398385,4.46997856,156.46,156.39,21.262]
[1762445398687,5.15997856,156.46,156.41,4.46997856]
[1762445398991,5.15997856,156.48,156.43,4.46997856]
[1762445399357,14.270232,156.49,156.41,10.86332426]
[1762445399358,5.15997856,156.47,156.41,10.86332426]
[1762445399658,5.15997856,156.47,156.42,4.46997856]
[1762445399862,0.69,156.47,156.42,4.46997856]
[1762445400066,0.69,156.46,156.41,10.86315492]
[1762445400359,9.78882769,156.45,156.37,4.46997856]
[1762445400587,9.78882769,156.45,156.39,4.46997856]
[1762445400588,12.34997856,156.44,156.39,4.46997856]
[1762445400958,13.03997856,156.44,156.39,10.86420763]
[1762445401170,0.69,156.47,156.41,4.46997856]
[1762445401381,7.88,156.46,156.41,4.46997856]
[1762445401686,7.88,156.46,156.4,0.67]
[1762445401687,7.88,156.46,156.42,4.46997856]
[1762445401853,7.88,156.46,156.4,0.67]
[1762445401854,0.69,156.45,156.4,4.46997856]
[1762445402059,5.15997856,156.45,156.4,4.46997856]
[1762445402286,0.69,156.45,156.4,5.13997856]
[1762445402583,5.15997856,156.45,156.4,5.13997856]
[1762445402780,0.69,156.45,156.4,5.13997856]
[1762445402986,0.69,156.45,156.41,10.86343166]
[1762445403485,0.69,156.45,156.4,0.67]
[1762445403486,7.08181916,156.45,156.4,10.8637433]
[1762445403693,4.46997856,156.49,156.44,4.46997856]
[1762445403861,5.15997856,156.52,156.47,4.46997856]
[1762445404061,0.69,156.52,156.45,0.67]
[1762445404271,4.46997856,156.49,156.44,20.592]
[1762445404475,30.38082769,156.5,156.4,20.592]
[1762445404685,4.46997856,156.47,156.41,4.46997856]
[1762445404887,7.88,156.47,156.42,4.46997856]
[1762445405085,6.39140994,156.46,156.41,11.5334256]
[1762445405288,6.39140994,156.46,156.4,26.98580029]
[1762445405498,4.46997856,156.44,156.38,6.39434176]
[1762445405664,5.15997856,156.44,156.39,4.46997856]
[1762445406182,5.15997856,156.43,156.38,10.86432032]
[1762445406387,4.46997856,156.41,156.36,5.13997856]
[1762445406573,4.46997856,156.38,156.33,22.38843705]
[1762445406763,4.46997856,156.39,156.33,11.53660342]
[1762445406964,6.39386189,156.4,156.33,10.86660342]
[1762445407263,4.46997856,156.38,156.31,20.592]
[1762445407463,4.46997856,156.36,156.3,0.87]
[1762445407664,4.46997856,156.32,156.3,0.2]
[1762445408063,0.69,156.32,156.3,0.2]
[1762445408382,7.88,156.35,156.3,0.2]
[1762445408383,5.15997856,156.31,156.3,0.2]
[1762445408588,4.46997856,156.32,156.3,0.2]
[1762445408767,4.46997856,156.33,156.3,0.2]
[1762445408971,13.03997856,156.35,156.3,4.66997856]
[1762445409187,4.46997856,156.33,156.3,0.2]
[1762445409362,5.15997856,156.34,156.3,0.2]
[1762445409558,0.69,156.37,156.32,4.46997856]
[1762445409765,1.99999999,156.45,156.36,4.46997856]
[1762445409766,4.46997856,156.42,156.36,4.46997856]
[1762445409966,0.69,156.42,156.38,4.46997856]
[1762445410383,0.69,156.42,156.35,21.262]
[1762445410802,4.46997856,156.4,156.34,4.46997856]
[1762445410982,4.46997856,156.39,156.34,4.46997856]
[1762445411180,14.27467962,156.38,156.34,4.46997856]
[1762445411383,8.57,156.38,156.34,4.46997856]
[1762445411598,7.88,156.38,156.35,4.46997856]
[1762445411997,7.88,156.42,156.36,5.13997856]
[1762445412200,12.34997856,156.42,156.37,4.46997856]
[1762445412507,8.57,156.42,156.37,4.46997856]
[1762445412711,0.69,156.46,156.4,4.46997856]
[1762445413008,0.69,156.46,156.41,4.46997856]
[1762445413180,0.69,156.46,156.41,10.86312525]
[1762445413710,0.69,156.46,156.41,11.53312525]
[1762445413910,0.69,156.46,156.41,10.86312525]
[1762445414083,7.88,156.47,156.44,4.46997856]
[1762445414286,14.27114116,156.47,156.43,4.46997856]
[1762445414595,7.88,156.47,156.44,4.46997856]
[1762445414797,7.88,156.47,156.45,4.46997856]
[1762445415001,7.88,156.47,156.44,4.46997856]
[1762445415315,7.88,156.47,156.43,4.46997856]
[1762445415496,7.88,156.47,156.44,4.46997856]
[1762445416007,7.88,156.47,156.45,4.46997856]
[1762445416215,7.88,156.47,156.44,4.46997856]
[1762445416933,7.88,156.47,156.45,4.46997856]
[1762445417390,7.88,156.47,156.42,0.67]
[1762445417391,7.88,156.47,156.44,4.46997856]
[1762445417800,7.88,156.47,156.45,4.46997856]
[1762445418404,7.88,156.47,156.42,6.39298259]
[1762445418716,0.69,156.46,156.42,4.46997856]
[1762445418888,14.96107504,156.47,156.42,4.46997856]
[1762445419088,14.96107504,156.47,156.42,5.13997856]
[1762445419284,5.15997856,156.46,156.39,0.67]
[1762445419505,0.69,156.46,156.42,4.46997856]
[1762445419716,7.88,156.47,156.45,4.46997856]
[1762445420201,7.88,156.47,156.44,4.46997856]
[1762445420399,7.88,156.47,156.43,0.67]
[1762445420400,7.88,156.47,156.43,4.46997856]
[1762445420598,7.88,156.47,156.42,20.592]
[1762445420914,7.88,156.47,156.43,4.46997856]
[1762445421113,4.46997856,156.45,156.4,4.46997856]
[1762445421291,0.69,156.46,156.42,4.46997856]
[1762445421488,7.08141676,156.46,156.41,4.46997856]
[1762445421689,7.08141676,156.46,156.41,5.13997856]
[1762445422115,14.27106271,156.47,156.42,4.46997856]
[1762445422296,4.46997856,156.45,156.4,4.46997856]
[1762445422496,4.46997856,156.45,156.38,26.98664756]
[1762445422497,4.46997856,156.44,156.39,4.46997856]
[1762445422793,4.46997856,156.43,156.38,25.06197856]
[1762445422994,12.32997856,156.42,156.37,4.46997856]
[1762445423520,0.7,156.41,156.36,6.39545083]
[1762445423834,18.72316573,156.42,156.37,4.46997856]
[1762445423835,14.25318717,156.42,156.37,4.46997856]
[1762445424034,14.25318717,156.42,156.31,0.63975433]
[1762445424035,4.46997856,156.38,156.3,0.2]
[1762445424328,4.46997856,156.33,156.3,0.2]
[1762445424493,7.86,156.32,156.3,0.2]
[1762445425423,7.86,156.36,156.31,5.16997856]
[1762445425625,4.46997856,156.32,156.3,0.2]
[1762445425795,12.32997856,156.31,156.3,0.2]
[1762445426003,22.11880625,156.31,156.3,0.2]
[1762445426195,22.81880625,156.31,156.3,0.2]
[1762445427614,29.21634959,156.31,156.3,0.2]
[1762445428138,20.592,156.27,156.22,0.2]
[1762445428429,4.46997856,156.24,156.22,0.2]
[1762445429031,0.7,156.23,156.22,0.2]
[1762445429197,5.16997856,156.23,156.22,0.2]
[1762445429528,14.9608193,156.23,156.22,0.2]
[1762445429825,7.86,156.23,156.22,0.2]
[1762445430029,13.02997856,156.23,156.22,0.2]
[1762445431130,22.81880625,156.23,156.22,0.2]
[1762445431309,30.38082769,156.22,156.17,0.2]
[1762445431496,10.87284704,156.18,156.17,0.2]
[1762445431697,18.73284704,156.18,156.17,0.2]
[1762445431897,19.43284704,156.18,156.17,0.2]
[1762445432116,7.86,156.18,156.17,0.2]
[1762445432352,18.73284704,156.18,156.17,0.2]
[1762445432793,14.96286848,156.18,156.17,0.2]
[1762445433000,7.86,156.18,156.17,0.2]
[1762445433230,7.86,156.18,156.17,0.9]
[1762445433435,18.73284704,156.18,156.17,0.2]
[1762445433599,14.26286848,156.18,156.17,0.2]
[1762445433807,18.73284704,156.18,156.17,0.2]
[1762445434202,14.26286848,156.18,156.17,0.2]
[1762445434402,18.73284704,156.18,156.17,0.2]
[1762445435024,19.43284704,156.18,156.17,0.2]
[1762445435829,19.43284704,156.18,156.15,1e-08]
[1762445435830,20.592,156.16,156.15,1e-08]
[1762445435999,20.592,156.15,156.13,1e-08]
[1762445436206,7.86,156.15,156.13,1e-08]
[1762445436606,12.32997856,156.15,156.13,1e-08]
[1762445437327,4.46997856,156.14,156.13,1e-08]
[1762445437502,5.13997856,156.14,156.13,1e-08]
[1762445437701,7.07450877,156.14,156.13,1e-08]
[1762445437901,11.54448733,156.14,156.13,1e-08]
[1762445438598,21.33331502,156.14,156.13,1e-08]
[1762445439825,11.54448733,156.14,156.13,1e-08]
[1762445443015,6.40450877,156.14,156.13,1e-08]
[1762445443216,14.26412006,156.15,156.13,1e-08]
[1762445443422,18.73409862,156.15,156.13,1e-08]
[1762445443615,4.46997856,156.14,156.13,1e-08]
[1762445444215,10.87448733,156.14,156.13,1e-08]
[1762445445633,6.40402228,156.16,156.13,0.67000001]
[1762445445807,7.88,156.15,156.13,5.13997857]
[1762445446132,7.88,156.15,156.13,0.67000001]
[1762445446329,7.88,156.15,156.14,5.13997856]
[1762445446833,7.88,156.15,156.14,0.67]
[1762445447009,7.88,156.15,156.14,5.13997856]
[1762445447330,14.28425159,156.15,156.13,1e-08]
[1762445447716,7.88,156.15,156.13,0.67000001]
[1762445447920,7.88,156.15,156.13,5.13997857]
[1762445448223,7.88,156.15,156.14,0.67]
[1762445448422,7.88,156.15,156.14,5.13997856]
[1762445449006,7.88,156.15,156.14,0.67]
[1762445449210,7.88,156.15,156.13,1e-08]
[1762445449519,7.88,156.15,156.13,0.67000001]
[1762445449832,14.28414807,156.15,156.13,0.67000001]
[1762445450937,14.28414807,156.15,156.13,1e-08]
[1762445451244,7.88,156.15,156.13,0.67000001]
[1762445451413,7.88,156.15,156.13,5.13997857]
[1762445451613,7.88,156.15,156.14,4.46997856]
[1762445451813,7.88,156.15,156.14,5.13997856]
[1762445452715,7.88,156.15,156.13,1e-08]
[1762445453009,7.88,156.15,156.13,0.68000001]
[1762445453332,7.88,156.15,156.13,1e-08]
[1762445453333,14.28415471,156.15,156.13,1e-08]
[1762445454335,18.75413327,156.15,156.13,1e-08]
[1762445454542,0.69,156.14,156.13,1e-08]
[1762445454840,4.46997856,156.14,156.13,1e-08]
[1762445455009,18.75413327,156.15,156.13,1e-08]
[1762445455215,14.28415471,156.15,156.13,1e-08]
[1762445455416,7.88,156.15,156.13,0.68000001]
[1762445455843,7.88,156.15,156.13,1e-08]
[1762445456040,14.28424007,156.15,156.13,1e-08]
[1762445456413,18.75421863,156.15,156.13,1e-08]
[1762445456832,5.15997856,156.14,156.13,1e-08]
[1762445457145,4.46997856,156.14,156.13,1e-08]
[1762445457749,14.28424007,156.15,156.13,1e-08]
[1762445459332,7.88,156.15,156.13,0.68000001]
[1762445459723,7.88,156.15,156.13,7.73179408]
[1762445459724,7.86,156.15,156.13,7.73179408]
[1762445460132,7.86,156.15,156.13,0.68000001]
[1762445460352,14.26420319,156.15,156.13,0.68000001]
[1762445460648,7.86,156.15,156.13,7.73179408]
[1762445460940,14.26417329,156.15,156.13,1e-08]
[1762445461144,7.86,156.15,156.14,0.68]
[1762445461350,3.34738153,156.26,156.17,20.592]
[1762445461652,7.05179407,156.24,156.18,7.05179407]
[1762445461854,7.05179407,156.21,156.17,20.592]
[1762445462032,7.86,156.2,156.16,20.592]
[1762445462226,7.05179407,156.17,156.13,1e-08]
[1762445462422,13.45606699,156.15,156.13,1e-08]
[1762445462729,7.86,156.16,156.14,7.73179407]
[1762445462930,0.69,156.23,156.15,7.05179407]
[1762445463147,7.86,156.22,156.17,7.05179407]
[1762445463522,7.05179407,156.23,156.18,7.73179407]
[1762445463726,6.39885084,156.28,156.22,7.05179407]
[1762445463955,7.86,156.27,156.23,7.05179407]
[1762445464133,7.05179407,156.24,156.17,0.68]
[1762445464443,7.86,156.27,156.21,7.05179407]
[1762445464627,7.86,156.27,156.19,6.40245854]
[1762445464628,7.86,156.27,156.23,7.05179407]
[1762445464832,0.1,156.31,156.26,7.05179407]
[1762445465166,6.97775333,156.31,156.27,7.05179407]
[1762445465363,0.58,156.31,156.29,7.05179407]
[1762445465532,0.58,156.31,156.3,7.05179407]
[1762445465837,0.58,156.31,156.26,20.592]
[1762445465838,6.39795265,156.3,156.26,20.592]
[1762445466038,7.63179407,156.31,156.27,0.68]
[1762445466247,7.05179407,156.3,156.26,20.592]
[1762445466449,6.39836201,156.29,156.24,0.68]
[1762445466636,6.39836201,156.29,156.23,20.592]
[1762445466637,7.05179407,156.28,156.23,20.592]
[1762445466839,13.45015608,156.29,156.24,7.73179407]
[1762445467359,7.05179407,156.29,156.25,0.68]
[1762445467530,7.05179407,156.28,156.24,0.68]
[1762445467855,14.13979824,156.3,156.25,7.05179407]
[1762445468042,7.05179407,156.29,156.24,7.73179407]
[1762445468357,13.44979824,156.3,156.25,7.05179407]
[1762445468652,7.05179407,156.29,156.24,7.73179407]
[1762445468836,0.58,156.31,156.26,7.05179407]
[1762445468837,7.63179407,156.31,156.26,7.05179407]
[1762445469026,14.02940161,156.31,156.27,0.68]
[1762445469224,7.05179407,156.3,156.25,7.05179407]
[1762445469426,7.05179407,156.3,156.24,0.68]
[1762445469661,7.05179407,156.29,156.24,28.32379407]
[1762445470034,7.05179407,156.28,156.24,21.272]
[1762445470248,7.05179407,156.28,156.23,7.05179407]
[1762445470452,7.05179407,156.24,156.16,0.64036885]
[1762445470656,14.91179407,156.23,156.18,7.05179407]
[1762445470840,7.86,156.25,156.2,7.05179407]
[1762445471157,14.91179407,156.25,156.2,7.05179407]
[1762445471354,14.91179407,156.25,156.2,7.73179407]
[1762445471655,7.86,156.25,156.22,7.05179407]
[1762445471854,7.86,156.25,156.23,7.05179407]
[1762445472228,7.86,156.25,156.23,7.73179407]
[1762445472434,7.86,156.28,156.24,7.73179407]
[1762445472658,7.86,156.28,156.25,7.05179407]
[1762445472856,7.86,156.28,156.24,0.68]
[1762445473048,7.86,156.28,156.24,14.13219114]
[1762445473241,7.86,156.28,156.21,0.68]
[1762445473242,7.74179407,156.27,156.21,0.68]
[1762445473456,0.69,156.27,156.23,7.05179407]
[1762445473649,7.05179407,156.27,156.21,0.68]
[1762445473953,7.86,156.28,156.26,7.05179407]
[1762445474258,7.86,156.28,156.25,7.05179407]
[1762445474558,6.3991809,156.27,156.23,20.592]
[1762445474761,7.86,156.26,156.23,21.272]
[1762445475059,7.05179407,156.25,156.19,0.68]
[1762445475244,7.05179407,156.24,156.19,7.73179407]
[1762445475446,7.05179407,156.23,156.18,7.05179407]
[1762445475934,7.74179407,156.25,156.19,7.73179407]
[1762445476435,7.05179407,156.25,156.2,7.73179407]
[1762445476631,13.45215147,156.25,156.2,7.73179407]
[1762445476830,6.4003574,156.25,156.21,7.05179407]
[1762445477341,13.45215147,156.25,156.2,7.05179407]
[1762445477550,7.74179407,156.24,156.19,7.05179407]
[1762445477754,7.86,156.26,156.21,7.05179407]
[1762445478063,7.86,156.26,156.22,7.73179407]
[1762445478431,7.86,156.26,156.23,0.68]
[1762445478642,7.86,156.26,156.23,7.73179407]
[1762445478861,7.86,156.26,156.22,7.05179407]
[1762445479060,7.86,156.26,156.25,7.05179407]
[1762445479243,0.1,156.31,156.25,7.73179407]
[1762445479559,7.05179407,156.28,156.21,0.68]
[1762445479862,7.05179407,156.28,156.23,7.05179407]
[1762445480238,7.74179407,156.28,156.23,0.68]
[1762445480558,7.74179407,156.28,156.24,6.40040962]
[1762445481265,7.86,156.27,156.25,7.05179407]
[1762445481470,7.86,156.27,156.26,7.73179407]
[1762445481762,0.1,156.31,156.29,20.592]
[1762445481995,0.1,156.31,156.27,0.68]
[1762445482143,0.1,156.31,156.29,7.05179407]
[1762445482339,0.1,156.31,156.3,7.05179407]
[1762445482536,7.86,156.34,156.3,7.69158933]
[1762445482860,7.05179407,156.33,156.28,7.07870899]
[1762445483047,7.72179407,156.33,156.28,13.45050306]
[1762445483242,7.72179407,156.33,156.28,29.44743164]
[1762445483445,0.67,156.33,156.29,7.05179407]
[1762445483647,7.72179407,156.33,156.28,14.13050306]
[1762445483839,0.67,156.33,156.28,22.39563757]
[1762445484059,7.86,156.34,156.29,0.68]
[1762445484444,7.86,156.34,156.3,7.73179407]
[1762445484762,7.86,156.34,156.31,22.39140169]
[1762445484967,7.86,156.34,156.33,7.05179407]
[1762445485439,7.05179407,156.38,156.33,7.05179407]
[1762445485769,7.84,156.37,156.33,7.05179407]
[1762445485975,15.56179407,156.37,156.31,22.39140169]
[1762445486174,7.84,156.37,156.31,22.39140169]
[1762445486375,7.84,156.37,156.32,0.68]
[1762445486551,7.84,156.37,156.34,7.05179407]
[1762445486751,7.84,156.37,156.35,6.39590661]
[1762445486951,8.51,156.37,156.35,6.39590661]
[1762445487559,7.84,156.37,156.35,6.39590661]
[1762445487973,0.67,156.36,156.33,6.39645171]
[1762445488174,7.84,156.36,156.33,6.39645171]
[1762445488379,7.05179407,156.34,156.28,7.05179407]
[1762445488676,7.05179407,156.33,156.28,7.05179407]
[1762445488979,7.05179407,156.33,156.29,6.39836201]
[1762445489174,7.72179407,156.32,156.29,6.39836201]
[1762445489386,7.84,156.31,156.29,6.39836201]
[1762445490248,7.72179407,156.34,156.29,13.45015608]
[1762445490460,7.84,156.33,156.29,13.45015608]
[1762445490755,9.78882769,156.37,156.31,6.39754334]
[1762445490756,7.84,156.32,156.31,6.39754334]
[1762445490949,102.9,156.42,156.31,29.44319576]
[1762445491150,7.05179407,156.4,156.34,7.05179407]
[1762445491351,7.05179407,156.4,156.35,7.05179407]
[1762445491572,7.72179407,156.4,156.34,7.05179407]
[1762445491757,0.67,156.39,156.34,7.05179407]
[1762445491958,110.62179407,156.42,156.36,7.05179407]
[1762445492145,110.62179407,156.42,156.32,30.38082769]
[1762445492146,7.05179407,156.4,156.32,31.06082769]
[1762445492351,15.56179407,156.41,156.33,0.68]
[1762445492555,15.56179407,156.41,156.35,7.05179407]
[1762445492764,0.67,156.4,156.34,6.39631572]
[1762445492975,0.67,156.4,156.35,7.05179407]
[1762445493274,7.72179407,156.4,156.35,7.05179407]
[1762445493480,0.67,156.4,156.35,7.05179407]
[1762445493978,7.05179407,156.42,156.37,7.05179407]
[1762445494169,7.84,156.41,156.37,7.05179407]
[1762445494476,0.67,156.41,156.37,7.05179407]
[1762445494682,7.84,156.4,156.37,7.05179407]
[1762445494879,15.56179407,156.4,156.37,6.39508857]
[1762445495067,8.51,156.4,156.37,6.39508857]
[1762445495263,7.84,156.4,156.37,6.39508857]
[1762445495450,8.51,156.4,156.37,6.39508857]
[1762445495654,7.84,156.39,156.37,6.39508857]
[1762445495866,7.84,156.39,156.37,22.38280999]
[1762445497075,7.84,156.39,156.35,29.43746722]
[1762445497286,8.55,156.39,156.36,7.05179407]
[1762445497456,7.84,156.39,156.35,6.39590661]
[1762445497656,0.71,156.38,156.35,6.39590661]
[1762445497872,0.71,156.38,156.35,22.38567315]
[1762445498151,7.76179407,156.38,156.35,6.39590661]
[1762445498354,110.66179407,156.38,156.35,6.39590661]
[1762445498577,7.76179407,156.37,156.33,6.39667053]
[1762445499087,7.76179407,156.36,156.33,6.39667053]
[1762445499292,7.76179407,156.36,156.31,13.44902096]
[1762445499459,0.71,156.35,156.31,22.39108524]
[1762445499656,7.84,156.34,156.31,29.44287931]
[1762445499881,103.61,156.38,156.33,7.05179407]
[1762445500169,7.84,156.37,156.34,7.05179407]
[1762445500385,8.55,156.37,156.34,7.05179407]
[1762445500656,102.9,156.38,156.34,7.05179407]
[1762445500859,102.9,156.38,156.37,6.39508857]
[1762445501093,102.9,156.38,156.35,6.39573379]
[1762445501094,118.50179407,156.38,156.35,6.39573379]
[1762445501258,110.74,156.38,156.35,13.44752786]
[1762445501461,110.74,156.38,156.37,7.05179407]
[1762445502166,103.61,156.38,156.35,29.4372944]
[1762445502376,7.84,156.37,156.35,29.4372944]
[1762445503790,8.55,156.37,156.35,6.39573379]
[1762445504090,7.84,156.37,156.35,6.39573379]
[1762445504295,7.84,156.37,156.35,13.44752786]
[1762445504469,7.84,156.37,156.36,7.05179407]
[1762445504981,7.84,156.37,156.36,13.44729163]
[1762445505163,7.84,156.37,156.36,30.12603555]
[1762445505599,0.71,156.41,156.36,22.38424148]
[1762445505769,7.76179407,156.44,156.39,7.05179407]
[1762445505970,7.84,156.43,156.39,7.05179407]
[1762445506167,8.55,156.43,156.39,7.05179407]
[1762445506966,0.71,156.43,156.41,6.3934531]
[1762445507170,9.78882769,156.47,156.41,6.3934531]
[1762445507171,0.71,156.47,156.42,7.05179407]
[1762445507477,0.71,156.5,156.46,7.05179407]
[1762445507678,7.05179407,156.48,156.42,7.74179407]
[1762445507872,7.05179407,156.47,156.42,7.05179407]
[1762445508081,7.05179407,156.46,156.41,42.96908586]
[1762445508267,7.05179407,156.46,156.41,50.02087993]
[1762445508482,0.71,156.45,156.41,50.02087993]
[1762445508668,7.84,156.44,156.41,50.02087993]
[1762445509073,14.89179407,156.44,156.41,6.3934531]
[1762445509266,7.84,156.44,156.41,6.3934531]
[1762445509465,7.84,156.44,156.4,7.05179407]
[1762445509466,0.71,156.43,156.4,13.4455016]
[1762445509668,7.05179407,156.42,156.35,0.69]
[1762445509999,7.05179407,156.42,156.37,7.05179407]
[1762445510183,7.76179407,156.42,156.37,7.05179407]
[1762445510496,0.71,156.42,156.38,7.05179407]
[1762445510697,15.60179407,156.44,156.39,7.05179407]
[1762445511200,0.71,156.43,156.4,6.39386189]
[1762445511569,7.76179407,156.43,156.4,6.39386189]
[1762445512025,7.05179407,156.43,156.39,6.39421236]
[1762445512301,7.76179407,156.42,156.39,6.39421236]
[1762445512668,7.05179407,156.42,156.39,6.39421236]
[1762445512880,0.72,156.42,156.39,6.39421236]
[1762445513189,102.9,156.45,156.4,0.71]
[1762445513368,7.84,156.42,156.39,22.37988919]
[1762445513692,7.84,156.42,156.39,29.43168326]
[1762445513894,7.84,156.42,156.4,7.05179407]
[1762445514266,0.72,156.44,156.4,7.05179407]
[1762445514473,7.84,156.43,156.4,7.05179407]
[1762445514889,7.84,156.43,156.41,6.3934531]
[1762445515092,7.84,156.42,156.4,7.05179407]
[1762445515497,7.84,156.42,156.4,13.44555768]
[1762445515803,7.84,156.42,156.4,6.39376361]
[1762445516408,7.84,156.42,156.35,52.57106499]